fUSD/lending_fUSD_20251119
["ID","MTS","AMOUNT","RATE_DAILY","PERIOD"]
[394451821,1763587845107,-500.0,0.00017973,2]
[394451822,1763587845119,-500.0,0.00017973,2]
[394451823,1763587845130,-500.0,0.00017973,2]
[394451824,1763587845139,-162.81944171,0.00017973,2]
[394451825,1763587845149,-500.0,0.00017973,2]
[394451826,1763587845158,-500.0,0.00017973,2]
[394451827,1763587845167,-500.0,0.00017973,2]
[394451828,1763587845176,-500.0,0.00017973,2]
[394451829,1763587845186,-500.0,0.00017973,2]
[394451830,1763587845194,-466.46109257,0.00017973,2]
[394451832,1763587845204,-500.0,0.00017973,2]
[394451833,1763587845212,-1414.68,0.00017973,2]
[394451834,1763587845221,-300.0,0.00017999,2]
[394451835,1763587845230,-180.0,0.00017999,2]
[394451836,1763587845239,-241.74780817,0.00017999,2]
[394451837,1763587845248,-300.0,0.00017999,2]
[394451838,1763587845258,-4984.0,0.00018,2]
[394451839,1763587845267,-150.0,0.00018,2]
[394451840,1763587845276,-291386.05951607,0.00018,2]
[394451841,1763587845308,-488541.12092131,0.00018,2]
[394451842,1763587845317,-1181.20604482,0.00018,2]
[394451843,1763587845327,-2544276.40995781,0.00018,2]
[394451844,1763587845339,-26863.22778188,0.00018,2]
[394451850,1763587845472,-7198.99847024,0.00018,2]
[394451853,1763587845483,-320.64029961,0.00018,2]
[394451855,1763587845494,-5824.24056182,0.00018,2]
[394451856,1763587845504,-90329.8157485,0.00018,2]
[394451857,1763587845515,-5031.3104671,0.00018,2]
[394451883,1763587846373,-662.07574449,0.00018,2]
[394451885,1763587846384,-2324.29556668,0.00018,2]
[394451888,1763587846395,-575.29027641,0.00018,2]
[394451892,1763587846430,561.86088077,0.0004203,120]
[394451895,1763587846446,-344.2002,0.00018,2]
[394451897,1763587846457,-607.29,0.00018,2]
[394451912,1763587853532,-330078.5600604,0.00018,2]
[394451914,1763587853591,500.0,0.0004203,120]
[394451915,1763587853740,400.0,0.0004203,120]
[394451916,1763587853796,569.50890693,0.0004203,120]
[394451917,1763587854131,250.0,0.0004203,120]
[394451918,1763587854219,509.55296756,0.0004203,120]
[394451919,1763587857422,381.22950862,0.0004203,120]
[394451920,1763587857726,500.0,0.0004203,120]
[394451921,1763587857969,443.48685828,0.0004203,120]
[394451922,1763587858207,429.63890576,0.0004203,120]
[394451923,1763587858769,334.11425,0.0004203,120]
[394451924,1763587859205,466.89590512,0.0004203,120]
[394451925,1763587860148,609.44508596,0.0004203,120]
[394451926,1763587864298,500.0,0.0004203,120]
[394451927,1763587864468,500.0,0.0004203,120]
[394451928,1763587864533,316.19,0.0004203,120]
[394451929,1763587864960,1330.0,0.0004203,30]
[394451930,1763587868198,500.0,0.0004203,120]
[394451931,1763587868541,507.65792027,0.0004203,120]
[394451932,1763587869666,435.62028513,0.0004203,120]
[394451933,1763587869702,500.0,0.0004203,120]
[394451934,1763587870137,500.0,0.0004203,120]
[394451935,1763587870238,400.0,0.0004203,120]
[394451936,1763587870380,294.83611849,0.0004203,120]
[394451937,1763587873960,253.74,0.0004203,120]
[394451938,1763587874772,507.53300732,0.0004203,120]
[394451939,1763587875903,398.55614667,0.0004203,120]
[394451940,1763587875995,417.68705074,0.0004203,120]
[394451941,1763587878098,500.0,0.0004203,120]
[394451942,1763587878381,464.50119764,0.0004203,120]
[394451943,1763587880327,445.79016337,0.0004203,120]
[394451944,1763587883501,400.0,0.0004203,120]
[394451945,1763587883861,500.0,0.0004203,120]
[394451946,1763587884109,400.0,0.0004203,120]
[394451947,1763587884182,400.0,0.0004203,120]
[394451948,1763587885458,500.0,0.0004203,120]
[394451949,1763587885708,400.0,0.0004203,120]
[394451950,1763587886587,500.0,0.0004203,120]
[394451951,1763587886827,500.0,0.0004203,120]
[394451952,1763587887097,500.0,0.0004203,120]
[394451953,1763587887137,535.71,0.0004203,120]
[394451954,1763587887333,334.85826154,0.0004203,120]
[394451955,1763587887539,500.0,0.0004203,120]
[394451956,1763587890550,513.30387247,0.0004203,120]
[394451957,1763587892527,553.69551611,0.0004203,120]
[394451958,1763587897585,242.08220076,0.0004203,120]
[394451959,1763587898513,500.0,0.0004203,120]
[394451960,1763587898680,500.0,0.0004203,120]
[394451961,1763587900398,552.34929028,0.0004203,120]
[394451962,1763587902814,500.0,0.0004203,120]
[394451963,1763587906389,500.0,0.0004203,120]
[394451965,1763587907905,203.25,0.0004203,120]
[394451966,1763587911232,400.0,0.0004203,120]
[394451967,1763587913131,504.11583241,0.0004203,120]
[394451968,1763587914345,400.0,0.0004203,120]
[394451969,1763587914565,495.43,0.0004203,120]
[394451970,1763587915106,400.0,0.0004203,120]
[394451971,1763587917063,500.0,0.0004203,120]
[394451972,1763587917309,302.59,0.0004203,120]
[394451973,1763587921890,478.94,0.0004203,120]
[394451974,1763587921936,528.45076499,0.0004203,120]
[394451975,1763587925539,400.0,0.0004203,120]
[394451976,1763587926704,1018.74670455,0.0004203,120]
[394451977,1763587927044,515.55768434,0.0004203,120]
[394451978,1763587927492,500.0,0.0004203,120]
[394451979,1763587927743,500.0,0.0004203,120]
[394451980,1763587927989,500.0,0.0004203,120]
[394451981,1763587928233,500.0,0.0004203,120]
[394451982,1763587928503,500.0,0.0004203,120]
[394451983,1763587928790,444.98,0.0004203,120]
[394451984,1763587928966,500.0,0.0004203,120]
[394451985,1763587929332,500.0,0.0004203,120]
[394451986,1763587932483,451.68450685,0.0004203,120]
[394451987,1763587933693,500.0,0.0004203,120]
[394451988,1763587937359,400.0,0.0004203,120]
[394451989,1763587939494,517.71619477,0.0004203,120]
[394451990,1763587941188,500.0,0.0004203,120]
[394451991,1763587941349,400.0,0.0004203,120]
[394451992,1763587941420,400.0,0.0004203,120]
[394451993,1763587942403,534.11423361,0.0004203,120]
[394451994,1763587943300,400.0,0.0004203,120]
[394451995,1763587945103,400.0,0.0004203,120]
[394451996,1763587947346,565.04989189,0.0004203,120]
[394451997,1763587947379,400.0,0.0004203,120]
[394451998,1763587948854,512.06,0.0004203,120]
[394451999,1763587950205,535.93079697,0.0004203,120]
[394452000,1763587952512,400.0,0.0004203,120]
[394452001,1763587952550,400.0,0.0004203,120]
[394452002,1763587958212,514.29826641,0.0004203,120]
[394452003,1763587959639,500.0,0.0004203,120]
[394452004,1763587959888,434.92,0.0004203,120]
[394452005,1763587960160,400.0,0.0004203,120]
[394452006,1763587961758,509.80277046,0.0004203,120]
[394452007,1763587962135,385.0,0.0004203,120]
[394452008,1763587962313,400.0,0.0004203,120]
[394452009,1763587964270,400.0,0.0004203,120]
[394452010,1763587964317,500.0,0.0004203,120]
[394452011,1763587964575,500.0,0.0004203,120]
[394452012,1763587964646,500.0,0.0004203,120]
[394452013,1763587964813,300.0,0.0004203,120]
[394452014,1763587965040,400.0,0.0004203,120]
[394452015,1763587965581,400.0,0.0004203,120]
[394452016,1763587966394,400.0,0.0004203,120]
[394452018,1763587968184,400.0,0.0004203,120]
[394452019,1763587968252,627.09514805,0.0004203,120]
[394452020,1763587971386,400.0,0.0004203,120]
[394452021,1763587971728,400.0,0.0004203,120]
[394452022,1763587972983,400.0,0.0004203,120]
[394452023,1763587973766,400.0,0.0004203,120]
[394452024,1763587977412,521.17872824,0.0004203,120]
[394452025,1763587977562,357.91574381,0.0004203,120]
[394452026,1763587979110,500.0,0.0004203,120]
[394452027,1763587979847,300.0,0.0004203,120]
[394452028,1763587980203,500.0,0.0004203,120]
[394452029,1763587980522,400.0,0.0004203,120]
[394452030,1763587981482,500.0,0.0004203,120]
[394452031,1763587981732,433.95545511,0.0004203,120]
[394452032,1763587982349,400.0,0.0004203,30]
[394452033,1763587983572,429.01352109,0.0004203,120]
[394452034,1763587985592,506.47808429,0.0004203,120]
[394452035,1763587985625,400.0,0.0004203,120]
[394452036,1763587985943,500.0,0.0004203,120]
[394452037,1763587986295,1130.09590536,0.0004203,120]
[394452038,1763587986330,297.25726013,0.0004203,120]
[394452039,1763587988161,468.92250595,0.0004203,120]
[394452040,1763587990226,400.0,0.0004203,120]
[394452041,1763587992025,400.0,0.0004203,120]
[394452042,1763587992831,500.0,0.0004203,120]
[394452043,1763587993160,300.0,0.0004203,120]
[394452044,1763587995403,500.0,0.0004203,120]
[394452045,1763587995643,550.38999999,0.0004203,120]
[394452046,1763587997902,500.0,0.0004203,120]
[394452047,1763587998163,363.68696642,0.0004203,120]
[394452048,1763587998223,500.0,0.0004203,120]
[394452049,1763587999371,400.0,0.0004203,120]
[394452050,1763588000529,500.0,0.0004203,120]
[394452051,1763588000758,500.0,0.0004203,120]
[394452052,1763588001028,500.0,0.0004203,120]
[394452053,1763588001258,500.0,0.0004203,120]
[394452054,1763588001494,390.95,0.0004203,120]
[394452055,1763588003224,400.0,0.0004203,120]
[394452056,1763588003316,500.0,0.0004203,120]
[394452057,1763588003529,400.0,0.0004203,120]
[394452058,1763588003561,400.0,0.0004203,120]
[394452059,1763588003640,422.97457343,0.0004203,120]
[394452060,1763588004366,527.98839986,0.0004203,120]
[394452061,1763588005513,500.0,0.0004203,120]
[394452062,1763588005761,300.0,0.0004203,120]
[394452063,1763588008368,400.0,0.0004203,120]
[394452064,1763588014689,500.0,0.0004203,120]
[394452065,1763588015480,400.0,0.0004203,120]
[394452066,1763588016625,152.03,0.0004203,120]
[394452067,1763588018473,558.41342211,0.0004203,120]
[394452068,1763588019221,293.19617883,0.0004203,120]
[394452069,1763588020950,530.13183081,0.0004203,120]
[394452070,1763588021104,400.0,0.0004203,120]
[394452071,1763588028480,400.0,0.0004203,120]
[394452072,1763588031600,500.0,0.0004203,120]
[394452073,1763588031826,500.0,0.0004203,120]
[394452074,1763588032074,300.0,0.0004203,120]
[394452075,1763588035976,280.0,0.0004203,120]
[394452076,1763588037294,500.0,0.0004203,120]
[394452077,1763588038767,566.61170809,0.0004203,120]
[394452078,1763588041774,227.27,0.0004203,120]
[394452079,1763588042598,500.0,0.0004203,120]
[394452080,1763588042851,632.35,0.0004203,120]
[394452081,1763588050394,500.0,0.0004203,120]
[394452082,1763588050876,512.26648924,0.0004203,120]
[394452083,1763588051691,500.0,0.0004203,120]
[394452084,1763588054195,569.46531976,0.0004203,120]
[394452085,1763588055641,528.82014076,0.0004203,120]
[394452086,1763588059223,500.0,0.0004203,120]
[394452087,1763588059458,331.23060684,0.0004203,120]
[394452088,1763588060969,400.0,0.0004203,120]
[394452089,1763588061417,500.0,0.0004203,120]
[394452090,1763588061492,560.53753963,0.0004203,120]
[394452091,1763588061671,448.78,0.0004203,120]
[394452092,1763588061753,329.62472401,0.0004203,120]
[394452093,1763588062670,500.0,0.0004203,120]
[394452094,1763588063500,525.80004026,0.0004203,120]
[394452095,1763588064669,579.70216771,0.0004203,120]
[394452096,1763588065501,523.49152166,0.0004203,120]
[394452097,1763588066575,513.33494642,0.0004203,120]
[394452098,1763588066704,500.0,0.0004203,120]
[394452099,1763588067482,517.30599858,0.0004203,120]
[394452100,1763588067662,500.0,0.0004203,120]
[394452101,1763588067902,400.0,0.0004203,120]
[394452102,1763588069055,467.92538507,0.0004203,120]
[394452103,1763588071041,474.0302769,0.0004203,120]
[394452104,1763588072523,500.0,0.0004203,120]
[394452105,1763588072888,300.0,0.0004203,120]
[394452106,1763588073106,202.72737901,0.00042031,120]
[394452107,1763588074270,562.26697309,0.00042031,120]
[394452108,1763588074491,471.23635747,0.00042031,120]
[394452109,1763588076923,500.0,0.00042031,120]
[394452110,1763588077013,500.0,0.00042031,120]
[394452111,1763588077172,300.0,0.00042031,120]
[394452112,1763588077260,500.0,0.00042031,120]
[394452113,1763588077495,300.0,0.00042031,120]
[394452114,1763588077920,500.0,0.00042031,120]
[394452115,1763588078161,453.89104366,0.00042031,120]
[394452116,1763588079040,500.0,0.00042031,120]
[394452117,1763588079272,300.0,0.00042031,120]
[394452118,1763588081570,400.0,0.00042031,120]
[394452119,1763588082477,463.08432918,0.00042031,120]
[394452120,1763588082524,500.0,0.00042031,120]
[394452121,1763588082910,400.0,0.00042031,120]
[394452122,1763588083600,516.89518692,0.00042031,120]
[394452123,1763588083716,435.79002879,0.00042031,120]
[394452124,1763588087678,400.0,0.00042031,120]
[394452125,1763588091499,448.36699268,0.00042031,120]
[394452126,1763588094959,500.0,0.00042031,120]
[394452127,1763588095004,500.0,0.00042031,120]
[394452128,1763588095191,282.13408378,0.00042031,120]
[394452129,1763588097248,400.0,0.00042031,120]
[394452130,1763588097300,477.29685134,0.00042031,120]
[394452131,1763588097449,2195.65,0.00032876,120]
[394452132,1763588097769,500.0,0.00042031,120]
[394452133,1763588097995,393.93947239,0.00042031,120]
[394452134,1763588100900,500.0,0.00042031,120]
[394452135,1763588101139,472.19617658,0.00042031,120]
[394452136,1763588102521,547.66200351,0.00042031,120]
[394452137,1763588102843,543.38894684,0.00042031,120]
[394452138,1763588103213,647.49173671,0.00042031,120]
[394452139,1763588103487,199.03890785,0.00042031,120]
[394452140,1763588104957,535.64074939,0.00042031,120]
[394452141,1763588105758,443.0891803,0.00042031,120]
[394452142,1763588106977,500.0,0.00042031,120]
[394452143,1763588107212,500.0,0.00042031,120]
[394452144,1763588107452,500.0,0.00042031,120]
[394452145,1763588107558,500.0,0.00042031,120]
[394452146,1763588107718,167.03139427,0.00042031,120]
[394452147,1763588107815,431.42505187,0.00042031,120]
[394452148,1763588109227,402.46960293,0.00042031,120]
[394452149,1763588111326,464.91905556,0.00042031,120]
[394452150,1763588111507,277.88332754,0.00042031,120]
[394452151,1763588111585,531.01766351,0.00042031,120]
[394452152,1763588111978,400.0,0.00042031,120]
[394452153,1763588113427,460.26344895,0.00042031,120]
[394452154,1763588113911,400.0,0.00042031,120]
[394452155,1763588115758,469.43840006,0.00042031,120]
[394452156,1763588116116,511.89149769,0.00042031,120]
[394452157,1763588116900,481.3786149,0.00042031,120]
[394452158,1763588121125,500.0,0.00042031,120]
[394452159,1763588121387,400.0,0.00042031,120]
[394452160,1763588123339,500.0,0.00042031,120]
[394452161,1763588123574,400.0,0.00042031,120]
[394452162,1763588124960,500.0,0.00042031,120]
[394452163,1763588125235,300.0,0.00042031,120]
[394452164,1763588127023,500.0,0.00042031,120]
[394452165,1763588127272,500.0,0.00042031,120]
[394452166,1763588127365,547.12542756,0.00042031,120]
[394452167,1763588127512,300.0,0.00042031,120]
[394452168,1763588127601,429.1438277,0.00042031,120]
[394452169,1763588133028,449.33586941,0.00042031,120]
[394452170,1763588133426,400.0,0.00042031,120]
[394452171,1763588137301,500.0,0.00042031,120]
[394452172,1763588137375,500.0,0.00042031,120]
[394452173,1763588137546,420.92388284,0.00042031,120]
[394452174,1763588137633,300.0,0.00042031,120]
[394452175,1763588139412,400.0,0.00042031,120]
[394452176,1763588140766,447.28636552,0.00042031,120]
[394452177,1763588146354,434.38876788,0.00042031,120]
[394452178,1763588147558,439.83078762,0.00042031,120]
[394452179,1763588150868,500.0,0.00042031,120]
[394452180,1763588151101,321.0641212,0.00042031,120]
[394452181,1763588152409,500.0,0.00042031,120]
[394452182,1763588162857,500.0,0.00042031,120]
[394452183,1763588163126,403.84583037,0.00042031,120]
[394452184,1763588164258,553.51985404,0.00042031,120]
[394452185,1763588164936,330.63171796,0.00042031,120]
[394452186,1763588167533,400.0,0.00042031,120]
[394452187,1763588167873,500.0,0.00042031,120]
[394452188,1763588168108,531.23,0.00042031,120]
[394452189,1763588170108,534.15242697,0.00042031,120]
[394452190,1763588172197,500.0,0.00042031,120]
[394452191,1763588174319,400.0,0.00042031,120]
[394452192,1763588176178,420.39980127,0.00042031,120]
[394452193,1763588179777,523.1838017,0.00042031,120]
[394452194,1763588184348,178.95517283,0.00042031,120]
[394452195,1763588186385,400.0,0.00042031,120]
[394452196,1763588188349,500.0,0.00042031,120]
[394452197,1763588189216,400.0,0.00042031,120]
[394452198,1763588191020,412.05107717,0.00042031,120]
[394452199,1763588192841,411.73885628,0.00042031,120]
[394452200,1763588195557,400.0,0.00042031,120]
[394452201,1763588197506,500.0,0.00042031,120]
[394452202,1763588197749,428.35223135,0.00042031,120]
[394452203,1763588198878,365.7217729,0.00042031,120]
[394452204,1763588202446,400.0,0.00042031,120]
[394452205,1763588207299,400.0,0.00042031,120]
[394452206,1763588208054,406.35195907,0.00042031,120]
[394452207,1763588209180,444.45945154,0.00042031,120]
[394452208,1763588209235,473.66027725,0.00042031,120]
[394452209,1763588209985,400.0,0.00042031,120]
[394452210,1763588214166,400.0,0.00042031,120]
[394452211,1763588216564,288.9810152,0.00042031,120]
[394452212,1763588217695,400.0,0.00042031,120]
[394452213,1763588217736,435.08834804,0.00042031,120]
[394452214,1763588218898,514.84040908,0.00042031,120]
[394452215,1763588223468,400.0,0.00042031,120]
[394452216,1763588226707,537.16002975,0.00042031,120]
[394452217,1763588230311,160.62,0.00042031,120]
[394452218,1763588230665,488.07103105,0.00042031,120]
[394452219,1763588237228,400.0,0.00042031,120]
[394452220,1763588239908,420.54572493,0.00042031,120]
[394452221,1763588244793,400.0,0.00042031,120]
[394452222,1763588247915,400.0,0.00042031,120]
[394452223,1763588249870,273.36267843,0.00042031,120]
[394452224,1763588254631,455.04842596,0.00042031,120]
[394452225,1763588256517,551.96436284,0.00042031,120]
[394452226,1763588260760,517.94216868,0.00042031,120]
[394452227,1763588261227,434.40572659,0.00042031,120]
[394452228,1763588263617,400.0,0.00042031,120]
[394452229,1763588268173,406.80687993,0.00042031,120]
[394452230,1763588269953,400.0,0.00042031,120]
[394452231,1763588275124,375.9,0.00042031,120]
[394452232,1763588283135,400.0,0.00042031,120]
[394452233,1763588284310,500.0,0.00042031,120]
[394452234,1763588286472,400.0,0.00042031,120]
[394452235,1763588288296,400.0,0.00042031,120]
[394452236,1763588289645,540.95144754,0.00042031,120]
[394452237,1763588297461,434.03684175,0.00042031,120]
[394452238,1763588302119,400.0,0.00042031,120]
[394452239,1763588307831,483.97555511,0.00042031,120]
[394452240,1763588316364,400.0,0.00042031,120]
[394452241,1763588320318,402.23710943,0.00042031,120]
[394452242,1763588327528,400.0,0.00042031,120]
[394452243,1763588328407,416.98025288,0.00042031,120]
[394452244,1763588337871,500.0,0.00042031,120]
[394452245,1763588339369,406.64384364,0.00042031,120]
[394452316,1763588349779,400.0,0.00042031,120]
[394452317,1763588353917,396.46,0.00042031,120]
[394452318,1763588355904,500.0,0.00042031,120]
[394452319,1763588356140,426.1543418,0.00042031,120]
[394452320,1763588358282,400.0,0.00042031,120]
[394452321,1763588364271,429.19761941,0.00042031,120]
[394452327,1763588367950,347.67024489,0.00042031,120]
[394452330,1763588368020,451.8773831,0.00042031,120]
[394452350,1763588371450,400.0,0.00042031,120]
[394452351,1763588371701,410.53871391,0.00042031,120]
[394452352,1763588373184,500.0,0.00042031,120]
[394452353,1763588373417,391.78607027,0.00042118,120]
[394452354,1763588375336,443.86,0.00042118,120]
[394452355,1763588376977,400.0,0.00042118,120]
[394452356,1763588378870,500.0,0.00042118,120]
[394452357,1763588379107,523.94812464,0.00042118,120]
[394452358,1763588380942,500.0,0.00042118,120]
[394452359,1763588381228,400.0,0.00042118,120]
[394452360,1763588382943,326.90070452,0.00042118,120]
[394452361,1763588384728,433.76315322,0.00042118,120]
[394452362,1763588384826,400.0,0.00042118,120]
[394452363,1763588388318,472.32,0.00042118,120]
[394452375,1763588391753,451.19,0.00042118,120]
[394452379,1763588392639,502.07708641,0.00042118,120]
[394452380,1763588400441,400.0,0.00042118,120]
[394452381,1763588405508,418.0460487,0.00042118,120]
[394452382,1763588407935,400.0,0.00042118,120]
[394452383,1763588409636,521.27341281,0.00042118,120]
[394452384,1763588409712,500.0,0.00042118,120]
[394452385,1763588409912,509.73,0.00042118,120]
[394452386,1763588410221,500.0,0.00042118,120]
[394452387,1763588410469,400.0,0.00042118,120]
[394452388,1763588411593,500.0,0.00042118,120]
[394452389,1763588413387,500.0,0.00042118,120]
[394452390,1763588415262,500.0,0.00042118,120]
[394452391,1763588421924,473.05890033,0.00042118,120]
[394452392,1763588425354,500.0,0.00042118,120]
[394452393,1763588425581,242.40120228,0.00042118,120]
[394452394,1763588426250,-420.22,0.00016805,2]
[394452395,1763588426765,500.0,0.00042118,120]
[394452396,1763588429190,500.0,0.00042118,120]
[394452397,1763588429488,194.51716087,0.00042118,120]
[394452398,1763588434097,510.7804284,0.00042118,120]
[394452399,1763588434164,400.0,0.00042118,120]
[394452400,1763588436391,565.90627551,0.00042118,120]
[394452401,1763588436877,422.17705464,0.00042118,120]
[394452402,1763588438366,577.60841491,0.00042118,120]
[394452403,1763588439064,400.0,0.00042118,120]
[394452406,1763588442018,547.92632302,0.00042118,120]
[394452407,1763588442501,437.55,0.00042118,120]
[394452408,1763588443849,410.92,0.00042118,120]
[394452409,1763588444502,268.4943097,0.00042118,120]
[394452410,1763588447315,411.19939477,0.00042118,120]
[394452411,1763588449137,428.92140724,0.00042118,120]
[394452413,1763588451057,407.36390519,0.00042118,120]
[394452414,1763588451922,500.0,0.00042118,120]
[394452415,1763588452182,400.0,0.00042118,120]
[394452416,1763588453207,555.12990363,0.00042118,120]
[394452417,1763588453492,270.84932575,0.00042118,120]
[394452418,1763588457004,413.69663731,0.00042118,120]
[394452419,1763588461973,415.28261639,0.00042118,120]
[394452420,1763588464001,400.0,0.00042118,120]
[394452422,1763588465429,479.74212873,0.00042118,120]
[394452423,1763588465849,429.53411616,0.00042118,120]
[394452425,1763588474782,500.0,0.00042118,120]
[394452426,1763588475814,400.0,0.00042118,120]
[394452427,1763588476449,500.0,0.00042118,120]
[394452428,1763588476683,331.70741453,0.00042118,120]
[394452429,1763588476922,411.09151752,0.00042118,120]
[394452430,1763588484605,400.0,0.00042118,120]
[394452431,1763588486214,400.0,0.00042118,120]
[394452432,1763588486392,400.0,0.00042118,120]
[394452434,1763588491048,400.0,0.00042118,120]
[394452435,1763588494972,500.0,0.00042118,120]
[394452436,1763588495232,300.0,0.00042118,120]
[394452440,1763588497048,500.0,0.00042118,120]
[394452441,1763588497278,221.87785869,0.00042118,120]
[394452442,1763588497812,400.0,0.00042118,120]
[394452443,1763588499690,411.4,0.00042118,120]
[394452444,1763588503692,406.151842,0.00042118,120]
[394452445,1763588503951,412.19341526,0.00042118,120]
[394452446,1763588505788,407.76876782,0.00042118,120]
[394452447,1763588506362,409.37128013,0.00042118,120]
[394452448,1763588507472,412.59096241,0.00042118,120]
[394452449,1763588509141,408.29689236,0.00042118,120]
[394452450,1763588509404,500.0,0.00042118,120]
[394452451,1763588509632,300.0,0.00042118,120]
[394452452,1763588510365,207.376349,0.00042118,120]
[394452453,1763588511052,439.04403937,0.00042118,120]
[394452455,1763588511694,405.0385377,0.00042118,120]
[394452456,1763588512904,425.05778261,0.00042118,120]
[394452457,1763588513466,500.0,0.00042118,120]
[394452458,1763588513689,500.0,0.00042118,120]
[394452459,1763588513950,432.36311727,0.00042118,120]
[394452460,1763588517320,400.0,0.00042118,120]
[394452462,1763588520471,408.29361041,0.00042118,120]
[394452463,1763588521266,409.24859379,0.00042118,120]
[394452464,1763588524756,500.0,0.00042118,120]
[394452465,1763588525042,500.0,0.00042118,120]
[394452466,1763588525291,328.06658456,0.00042118,120]
[394452467,1763588527433,400.0,0.00042118,120]
[394452468,1763588532084,329.94505077,0.00042118,120]
[394452469,1763588533358,430.50265798,0.00042118,120]
[394452471,1763588535060,413.24543586,0.00042118,120]
[394452472,1763588535496,400.0,0.00042118,120]
[394452473,1763588538069,4000.76652926,0.00042118,120]
[394452475,1763588543064,400.0,0.00042118,120]
[394452476,1763588544905,255.25075604,0.00042118,120]
[394452477,1763588545174,293.87362352,0.00042118,120]
[394452478,1763588547335,524.96069689,0.00042118,120]
[394452479,1763588548320,454.14583646,0.00042118,120]
[394452480,1763588549260,500.0,0.00042118,120]
[394452481,1763588549518,310.94804914,0.00042118,120]
[394452482,1763588552974,500.0,0.00042118,120]
[394452483,1763588553220,300.0,0.00042118,120]
[394452484,1763588555130,500.0,0.00042118,120]
[394452485,1763588555572,412.23549532,0.00042118,120]
[394452487,1763588557832,503.6457302,0.00042118,120]
[394452488,1763588561564,415.88565092,0.00042118,120]
[394452489,1763588563640,400.0,0.00042118,120]
[394452490,1763588565479,400.0,0.00042118,120]
[394452492,1763588570623,400.0,0.00042118,120]
[394452495,1763588584111,400.0,0.00042118,120]
[394452496,1763588589168,500.0,0.00042118,120]
[394452497,1763588590776,431.58186257,0.00042118,30]
[394452498,1763588594641,400.0,0.00042118,120]
[394452499,1763588596573,400.0,0.00042118,120]
[394452500,1763588601634,400.0,0.00042118,120]
[394452504,1763588609296,503.43764256,0.00042118,120]
[394452505,1763588610258,400.0,0.00042118,120]
[394452506,1763588612274,500.0,0.00042118,120]
[394452507,1763588612499,540.3307705,0.00042118,120]
[394452508,1763588619344,400.0,0.00042118,120]
[394452509,1763588623019,445.97438511,0.00042118,120]
[394452510,1763588624907,400.0,0.00042118,120]